[Event "Titled Tuesday Blitz April 11 Early 2023"]
[White "Winkels, Marcel"]
[Black "Mayaud, Raphael"]
[WhiteFideId "1003887"]
[BlackFideId "627151"]
[WhiteElo "1900"]
[BlackElo "2191"]
[Result "0-1"]
[Round "03"]
[TimeControl "180+2"]
[Date "2023.04.11"]
[WhiteClock "0:00:43"]
[BlackClock "0:00:34"]

1. d4 {[%clk 0:03:00]}  Nf6 {[%clk 0:02:59]} 2. Nc3 {[%clk 0:03:01]}  d5 {[%clk 0:02:58]} 3. Bf4 {[%clk 0:03:01]}  c6 {[%clk 0:02:52]} 4. e3 {[%clk 0:02:57]}  Bf5 {[%clk 0:02:51]} 5. f3 {[%clk 0:02:57]}  e6 {[%clk 0:02:49]} 6. g4 {[%clk 0:02:57]}  Bg6 {[%clk 0:02:50]} 7. h4 {[%clk 0:02:57]}  h5 {[%clk 0:02:50]} 8. g5 {[%clk 0:02:57]}  Nfd7 {[%clk 0:02:49]} 9. Bd3 {[%clk 0:02:56]}  Bxd3 {[%clk 0:02:49]} 10. Qxd3 {[%clk 0:02:56]}  g6 {[%clk 0:02:49]} 11. Nh3 {[%clk 0:02:53]}  Bg7 {[%clk 0:02:48]} 12. Bd6 {[%clk 0:02:48]}  c5 {[%clk 0:02:17]} 13. dxc5 {[%clk 0:02:23]}  Qa5 {[%clk 0:02:14]} 14. Nf4 {[%clk 0:02:22]}  Nxc5 {[%clk 0:02:10]} 15. Qb5+ {[%clk 0:02:03]}  Qxb5 {[%clk 0:01:56]} 16. Nxb5 {[%clk 0:02:02]}  Nca6 {[%clk 0:01:44]} 17. Ba3 {[%clk 0:01:50]}  Nc6 {[%clk 0:01:08]} 18. Nd6+ {[%clk 0:01:48]}  Kd7 {[%clk 0:01:02]} 19. Nxb7 {[%clk 0:01:47]}  Rhb8 {[%clk 0:00:52]} 20. Nd6 {[%clk 0:01:41]}  Nab4 {[%clk 0:00:52]} 21. Bxb4 {[%clk 0:01:12]}  Nxb4 {[%clk 0:00:51]} 22. Nxf7 {[%clk 0:00:49]}  Nxc2+ {[%clk 0:00:51]} 23. Kd2 {[%clk 0:00:47]}  Nxa1 {[%clk 0:00:52]} 24. Rxa1 {[%clk 0:00:45]}  Rxb2+ {[%clk 0:00:52]} 25. Kd3 {[%clk 0:00:43]}  Rc8 {[%clk 0:00:34]} 0-1


[Site "https://www.chess.com"]

[Event "Titled Tuesday Blitz April 11 Early 2023"]
[White "Mogirzan, Matei-Valeriu"]
[Black "Hartikainen, Jarmo"]
[WhiteFideId "1257455"]
[BlackFideId "503134"]
[WhiteElo "1733"]
[BlackElo "2065"]
[Result "1-0"]
[Round "03"]
[TimeControl "180+2"]
[Date "2023.04.11"]
[WhiteClock "0:00:18"]
[BlackClock "0:00:02"]

1. e4 {[%clk 0:03:00]}  c5 {[%clk 0:02:59]} 2. Nf3 {[%clk 0:03:00]}  Nc6 {[%clk 0:02:59]} 3. Bb5 {[%clk 0:03:00]}  g6 {[%clk 0:02:58]} 4. h4 {[%clk 0:03:00]}  h5 {[%clk 0:02:57]} 5. c3 {[%clk 0:02:59]}  Bg7 {[%clk 0:02:55]} 6. d4 {[%clk 0:02:59]}  cxd4 {[%clk 0:02:44]} 7. cxd4 {[%clk 0:03:00]}  Qb6 {[%clk 0:02:41]} 8. Nc3 {[%clk 0:02:56]}  Nxd4 {[%clk 0:02:30]} 9. Nd5 {[%clk 0:02:50]}  Nxf3+ {[%clk 0:02:25]} 10. Qxf3 {[%clk 0:02:14]}  Qd8 {[%clk 0:02:24]} 11. Bf4 {[%clk 0:02:10]}  e5 {[%clk 0:02:11]} 12. Bg5 {[%clk 0:01:48]}  f6 {[%clk 0:02:10]} 13. Bd2 {[%clk 0:01:40]}  a6 {[%clk 0:02:01]} 14. Bc4 {[%clk 0:01:15]}  b5 {[%clk 0:02:00]} 15. Bb3 {[%clk 0:01:14]}  Bb7 {[%clk 0:02:01]} 16. Qg3 {[%clk 0:01:12]}  g5 {[%clk 0:00:28]} 17. hxg5 {[%clk 0:01:04]}  Bxd5 {[%clk 0:00:28]} 18. Bxd5 {[%clk 0:01:03]}  Rc8 {[%clk 0:00:28]} 19. g6 {[%clk 0:00:51]}  Nh6 {[%clk 0:00:23]} 20. Rxh5 {[%clk 0:00:47]}  Qe7 {[%clk 0:00:09]} 21. Bxh6 {[%clk 0:00:37]}  Rxh6 {[%clk 0:00:05]} 22. Bf7+ {[%clk 0:00:27]}  Kf8 {[%clk 0:00:05]} 23. Qh4 {[%clk 0:00:25]}  Qb4+ {[%clk 0:00:02]} 24. Kf1 {[%clk 0:00:23]}  Qxb2 {[%clk 0:00:02]} 25. Re1 {[%clk 0:00:18]} 1-0


[Site "https://www.chess.com"]

[Event "Titled Tuesday Blitz April 11 Early 2023"]
[White "Jarocka, Liwia"]
[Black "Aung Thant Zin"]
[WhiteFideId "21807558"]
[BlackFideId "13000063"]
[WhiteElo "2013"]
[BlackElo "2278"]
[Result "1/2-1/2"]
[Round "03"]
[TimeControl "180+2"]
[Date "2023.04.11"]
[WhiteClock "0:00:09"]
[BlackClock "0:00:13"]

1. d4 {[%clk 0:03:00]}  Nf6 {[%clk 0:02:48]} 2. Nf3 {[%clk 0:03:00]}  e6 {[%clk 0:02:48]} 3. g3 {[%clk 0:03:00]}  d5 {[%clk 0:02:48]} 4. c4 {[%clk 0:03:01]}  Be7 {[%clk 0:02:49]} 5. Bg2 {[%clk 0:03:00]}  O-O {[%clk 0:02:48]} 6. O-O {[%clk 0:03:01]}  dxc4 {[%clk 0:02:49]} 7. Ne5 {[%clk 0:03:00]}  Nc6 {[%clk 0:02:47]} 8. Nxc6 {[%clk 0:02:59]}  bxc6 {[%clk 0:02:48]} 9. e3 {[%clk 0:02:59]}  Rb8 {[%clk 0:02:46]} 10. Bxc6 {[%clk 0:02:55]}  Nd5 {[%clk 0:02:46]} 11. Nc3 {[%clk 0:02:54]}  Nb4 {[%clk 0:02:35]} 12. Bg2 {[%clk 0:02:49]}  c5 {[%clk 0:02:30]} 13. d5 {[%clk 0:02:40]}  Nd3 {[%clk 0:02:25]} 14. Qc2 {[%clk 0:02:31]}  Bf6 {[%clk 0:01:56]} 15. Ne4 {[%clk 0:02:13]}  exd5 {[%clk 0:01:51]} 16. Nxf6+ {[%clk 0:02:12]}  gxf6 {[%clk 0:01:51]} 17. e4 {[%clk 0:02:09]}  Be6 {[%clk 0:01:43]} 18. b3 {[%clk 0:01:48]}  Nxc1 {[%clk 0:01:26]} 19. Raxc1 {[%clk 0:01:43]}  cxb3 {[%clk 0:01:24]} 20. axb3 {[%clk 0:01:41]}  d4 {[%clk 0:01:23]} 21. Qxc5 {[%clk 0:01:36]}  Qb6 {[%clk 0:01:18]} 22. Qe7 {[%clk 0:01:00]}  Bxb3 {[%clk 0:01:06]} 23. Rb1 {[%clk 0:00:49]}  a5 {[%clk 0:00:53]} 24. e5 {[%clk 0:00:47]}  fxe5 {[%clk 0:00:49]} 25. Qxe5 {[%clk 0:00:40]}  a4 {[%clk 0:00:42]} 26. Bd5 {[%clk 0:00:26]}  Qg6 {[%clk 0:00:19]} 27. Bxb3 {[%clk 0:00:20]}  axb3 {[%clk 0:00:19]} 28. Qxd4 {[%clk 0:00:20]}  Rfd8 {[%clk 0:00:18]} 29. Qe5 {[%clk 0:00:18]}  Re8 {[%clk 0:00:18]} 30. Qd4 {[%clk 0:00:18]}  Red8 {[%clk 0:00:18]} 31. Qb2 {[%clk 0:00:18]}  Rd3 {[%clk 0:00:17]} 32. Rfe1 {[%clk 0:00:17]}  Rbd8 {[%clk 0:00:16]} 33. Qe5 {[%clk 0:00:15]}  R3d5 {[%clk 0:00:15]} 34. Qe7 {[%clk 0:00:15]}  Qb6 {[%clk 0:00:13]} 35. Re2 {[%clk 0:00:11]}  Rd1+ {[%clk 0:00:11]} 36. Rxd1 {[%clk 0:00:09]}  Rxd1+ {[%clk 0:00:12]} 37. Kg2 {[%clk 0:00:09]}  Qc6+ {[%clk 0:00:13]} 38. f3 {[%clk 0:00:08]}  Qd7 {[%clk 0:00:12]} 39. Qg5+ {[%clk 0:00:07]}  Kh8 {[%clk 0:00:11]} 40. Qf6+ {[%clk 0:00:07]}  Kg8 {[%clk 0:00:12]} 41. Qg5+ {[%clk 0:00:07]}  Kh8 {[%clk 0:00:12]} 42. Qe5+ {[%clk 0:00:07]}  Kg8 {[%clk 0:00:13]} 43. Qe8+ {[%clk 0:00:07]}  Qxe8 {[%clk 0:00:12]} 44. Rxe8+ {[%clk 0:00:08]}  Kg7 {[%clk 0:00:13]} 45. Rb8 {[%clk 0:00:08]}  Rd2+ {[%clk 0:00:13]} 46. Kh3 {[%clk 0:00:09]}  b2 {[%clk 0:00:14]} 47. f4 {[%clk 0:00:09]}  Kf6 {[%clk 0:00:14]} 48. Kg4 {[%clk 0:00:09]}  Rxh2 {[%clk 0:00:13]} 49. Rb6+ {[%clk 0:00:08]}  Kg7 {[%clk 0:00:12]} 50. Kf5 {[%clk 0:00:09]}  h5 {[%clk 0:00:12]} 51. Kg5 {[%clk 0:00:08]}  h4 {[%clk 0:00:11]} 52. gxh4 {[%clk 0:00:08]}  Rg2+ {[%clk 0:00:12]} 53. Kf5 {[%clk 0:00:08]}  Rh2 {[%clk 0:00:12]} 54. Kg4 {[%clk 0:00:07]}  Rg2+ {[%clk 0:00:12]} 55. Kf5 {[%clk 0:00:08]}  Rh2 {[%clk 0:00:12]} 56. Kg5 {[%clk 0:00:08]}  Rg2+ {[%clk 0:00:13]} 57. Kf5 {[%clk 0:00:09]} 1/2-1/2


[Site "https://www.chess.com"]

[Event "Titled Tuesday Blitz April 11 Early 2023"]
[White "NtcPou"]
[Black "Matveeva, Olga"]
[BlackFideId "24107018"]
[WhiteElo "1975"]
[BlackElo "2056"]
[Result "0-1"]
[Round "03"]
[TimeControl "180+2"]
[Date "2023.04.11"]
[WhiteClock "0:02:06"]
[BlackClock "0:01:14"]

1. e4 {[%clk 0:03:00]}  e6 {[%clk 0:02:59]} 2. d4 {[%clk 0:03:00]}  d5 {[%clk 0:03:00]} 3. Nd2 {[%clk 0:03:00]}  c5 {[%clk 0:02:59]} 4. Ngf3 {[%clk 0:02:59]}  cxd4 {[%clk 0:02:59]} 5. exd5 {[%clk 0:02:56]}  Qxd5 {[%clk 0:03:00]} 6. Bc4 {[%clk 0:02:55]}  Qd6 {[%clk 0:03:00]} 7. O-O {[%clk 0:02:54]}  Nf6 {[%clk 0:03:00]} 8. Bb3 {[%clk 0:02:54]}  Nc6 {[%clk 0:02:59]} 9. Nc4 {[%clk 0:02:54]}  Qc7 {[%clk 0:02:53]} 10. Re1 {[%clk 0:02:53]}  Bc5 {[%clk 0:02:48]} 11. Bg5 {[%clk 0:02:47]}  Bd7 {[%clk 0:02:43]} 12. Nfe5 {[%clk 0:02:46]}  Nxe5 {[%clk 0:02:35]} 13. Nxe5 {[%clk 0:02:46]}  h6 {[%clk 0:02:19]} 14. Nxd7 {[%clk 0:02:31]}  Qxd7 {[%clk 0:02:17]} 15. Bxf6 {[%clk 0:02:32]}  gxf6 {[%clk 0:02:17]} 16. Qf3 {[%clk 0:02:32]}  Ke7 {[%clk 0:02:00]} 17. Rad1 {[%clk 0:02:31]}  Qc6 {[%clk 0:01:52]} 18. Qh3 {[%clk 0:02:27]}  Rag8 {[%clk 0:01:47]} 19. Re2 {[%clk 0:02:22]}  Rg5 {[%clk 0:01:36]} 20. Rde1 {[%clk 0:02:22]}  f5 {[%clk 0:01:34]} 21. f4 {[%clk 0:02:12]}  d3+ {[%clk 0:01:31]} 22. Kh1 {[%clk 0:02:10]}  dxe2 {[%clk 0:01:23]} 23. fxg5 {[%clk 0:02:10]}  Qe4 {[%clk 0:01:17]} 24. gxh6 {[%clk 0:02:06]}  Bf2 {[%clk 0:01:14]} 0-1


[Site "https://www.chess.com"]

[Event "Titled Tuesday Blitz April 11 Early 2023"]
[White "Ovezdurdyyeva, Jemal"]
[Black "Semenova, Alina"]
[WhiteFideId "14001888"]
[BlackFideId "24113875"]
[WhiteElo "2043"]
[BlackElo "1833"]
[Result "0-1"]
[Round "03"]
[TimeControl "180+2"]
[Date "2023.04.11"]
[WhiteClock "0:02:09"]
[BlackClock "0:01:16"]

1. e4 {[%clk 0:03:00]}  e5 {[%clk 0:03:00]} 2. Nf3 {[%clk 0:03:01]}  Nf6 {[%clk 0:03:00]} 3. Nxe5 {[%clk 0:02:58]}  d6 {[%clk 0:03:01]} 4. Nf3 {[%clk 0:02:57]}  Nxe4 {[%clk 0:03:01]} 5. Nc3 {[%clk 0:02:56]}  Nxc3 {[%clk 0:02:52]} 6. dxc3 {[%clk 0:02:57]}  Bg4 {[%clk 0:02:50]} 7. Be2 {[%clk 0:02:53]}  Be7 {[%clk 0:02:49]} 8. Be3 {[%clk 0:02:53]}  O-O {[%clk 0:02:49]} 9. Qd2 {[%clk 0:02:53]}  Nc6 {[%clk 0:02:48]} 10. O-O-O {[%clk 0:02:53]}  Bf6 {[%clk 0:02:47]} 11. h3 {[%clk 0:02:53]}  Bh5 {[%clk 0:02:46]} 12. g4 {[%clk 0:02:54]}  Bg6 {[%clk 0:02:46]} 13. Nd4 {[%clk 0:02:53]}  Nxd4 {[%clk 0:02:45]} 14. cxd4 {[%clk 0:02:53]}  Bh4 {[%clk 0:02:41]} 15. f4 {[%clk 0:02:52]}  f5 {[%clk 0:02:36]} 16. g5 {[%clk 0:02:51]}  a5 {[%clk 0:02:25]} 17. d5 {[%clk 0:02:41]}  Re8 {[%clk 0:02:23]} 18. Bd4 {[%clk 0:02:39]}  c5 {[%clk 0:02:08]} 19. dxc6 {[%clk 0:02:35]}  bxc6 {[%clk 0:02:09]} 20. Bc4+ {[%clk 0:02:35]}  d5 {[%clk 0:02:09]} 21. Bd3 {[%clk 0:02:35]}  Qd6 {[%clk 0:01:54]} 22. Be5 {[%clk 0:02:28]}  Rxe5 {[%clk 0:01:20]} 23. fxe5 {[%clk 0:02:27]}  Qxe5 {[%clk 0:01:21]} 24. Rhf1 {[%clk 0:02:23]}  Rb8 {[%clk 0:01:20]} 25. c4 {[%clk 0:02:09]}  Bxg5 {[%clk 0:01:16]} 0-1


[Site "https://www.chess.com"]

[Event "Titled Tuesday Blitz April 11 Early 2023"]
[White "Duda, Jan-Krzysztof"]
[Black "Kravtsiv, Martyn"]
[WhiteFideId "1170546"]
[BlackFideId "14113147"]
[WhiteElo "2790"]
[BlackElo "2695"]
[Result "1-0"]
[Round "04"]
[TimeControl "180+2"]
[Date "2023.04.11"]
[WhiteClock "0:00:09"]
[BlackClock "0:00:01"]

1. d4 {[%clk 0:02:59]}  d5 {[%clk 0:03:00]} 2. c4 {[%clk 0:03:00]}  e6 {[%clk 0:03:00]} 3. Nf3 {[%clk 0:03:01]}  Nf6 {[%clk 0:02:59]} 4. h3 {[%clk 0:03:01]}  Be7 {[%clk 0:02:58]} 5. Nc3 {[%clk 0:03:01]}  O-O {[%clk 0:02:56]} 6. cxd5 {[%clk 0:02:59]}  exd5 {[%clk 0:02:55]} 7. Bf4 {[%clk 0:03:00]}  c6 {[%clk 0:02:49]} 8. e3 {[%clk 0:02:57]}  Bf5 {[%clk 0:02:48]} 9. Bd3 {[%clk 0:02:42]}  Bxd3 {[%clk 0:02:43]} 10. Qxd3 {[%clk 0:02:43]}  Re8 {[%clk 0:02:42]} 11. O-O {[%clk 0:02:34]}  Nbd7 {[%clk 0:02:41]} 12. Rab1 {[%clk 0:02:34]}  a5 {[%clk 0:02:41]} 13. a3 {[%clk 0:02:34]}  a4 {[%clk 0:02:40]} 14. Qc2 {[%clk 0:02:32]}  Qa5 {[%clk 0:02:37]} 15. Rfc1 {[%clk 0:02:24]}  h6 {[%clk 0:02:35]} 16. g4 {[%clk 0:02:16]}  Nb6 {[%clk 0:02:32]} 17. Bc7 {[%clk 0:02:15]}  Bd8 {[%clk 0:02:31]} 18. Bxb6 {[%clk 0:02:12]}  Bxb6 {[%clk 0:02:30]} 19. b4 {[%clk 0:02:11]}  axb3 {[%clk 0:02:19]} 20. Rxb3 {[%clk 0:02:11]}  Nd7 {[%clk 0:02:19]} 21. a4 {[%clk 0:02:03]}  Qa6 {[%clk 0:02:14]} 22. Rcb1 {[%clk 0:02:01]}  Ba5 {[%clk 0:01:48]} 23. Qf5 {[%clk 0:02:00]}  Nf6 {[%clk 0:01:44]} 24. Nd1 {[%clk 0:01:42]}  Re7 {[%clk 0:01:41]} 25. Qd3 {[%clk 0:01:34]}  Qxd3 {[%clk 0:01:37]} 26. Rxd3 {[%clk 0:01:34]}  Ne4 {[%clk 0:01:37]} 27. Rdb3 {[%clk 0:01:32]}  Nd6 {[%clk 0:01:38]} 28. Nb2 {[%clk 0:01:31]}  f6 {[%clk 0:01:31]} 29. Nd3 {[%clk 0:01:30]}  Ra7 {[%clk 0:01:29]} 30. Kg2 {[%clk 0:01:29]}  Kf7 {[%clk 0:01:26]} 31. h4 {[%clk 0:01:24]}  Bc7 {[%clk 0:01:15]} 32. h5 {[%clk 0:01:10]}  Re4 {[%clk 0:00:44]} 33. Nc5 {[%clk 0:01:03]}  Rxg4+ {[%clk 0:00:44]} 34. Kh3 {[%clk 0:01:04]}  Re4 {[%clk 0:00:37]} 35. Nxe4 {[%clk 0:01:03]}  dxe4 {[%clk 0:00:37]} 36. Nh4 {[%clk 0:00:57]}  Bd8 {[%clk 0:00:31]} 37. Kg4 {[%clk 0:00:51]}  Ke6 {[%clk 0:00:29]} 38. Ng6 {[%clk 0:00:44]}  f5+ {[%clk 0:00:29]} 39. Kh3 {[%clk 0:00:37]}  Rxa4 {[%clk 0:00:30]} 40. Nf4+ {[%clk 0:00:31]}  Kd7 {[%clk 0:00:28]} 41. Rg1 {[%clk 0:00:24]}  Bg5 {[%clk 0:00:26]} 42. d5 {[%clk 0:00:24]}  cxd5 {[%clk 0:00:20]} 43. Nxd5 {[%clk 0:00:25]}  Ra2 {[%clk 0:00:20]} 44. Kg3 {[%clk 0:00:24]}  b5 {[%clk 0:00:18]} 45. Rd1 {[%clk 0:00:21]}  Ra6 {[%clk 0:00:16]} 46. Nc3 {[%clk 0:00:18]}  Rb6 {[%clk 0:00:14]} 47. Rxb5 {[%clk 0:00:16]}  Rc6 {[%clk 0:00:11]} 48. Na4 {[%clk 0:00:12]}  Ke6 {[%clk 0:00:10]} 49. Rc5 {[%clk 0:00:11]}  Ra6 {[%clk 0:00:10]} 50. Rcd5 {[%clk 0:00:10]}  Nb7 {[%clk 0:00:07]} 51. Nc5+ {[%clk 0:00:08]}  Nxc5 {[%clk 0:00:06]} 52. Rxc5 {[%clk 0:00:09]}  Be7 {[%clk 0:00:05]} 53. Rb5 {[%clk 0:00:09]}  Bd6+ {[%clk 0:00:06]} 54. Kg2 {[%clk 0:00:09]}  Rc6 {[%clk 0:00:06]} 55. Rdb1 {[%clk 0:00:08]}  Rc2 {[%clk 0:00:03]} 56. Rb6 {[%clk 0:00:08]}  Rd2 {[%clk 0:00:03]} 57. R1b2 {[%clk 0:00:07]}  Rd3 {[%clk 0:00:03]} 58. Ra2 {[%clk 0:00:08]}  Kf6 {[%clk 0:00:02]} 59. Raa6 {[%clk 0:00:08]}  Ke6 {[%clk 0:00:02]} 60. Rb7 {[%clk 0:00:08]}  Kf6 {[%clk 0:00:02]} 61. Rd7 {[%clk 0:00:08]}  Ke6 {[%clk 0:00:01]} 62. Rxg7 {[%clk 0:00:09]} 1-0


[Site "https://www.chess.com"]

[Event "Titled Tuesday Blitz April 11 Early 2023"]
[White "Kuzubov, Yuriy"]
[Black "Lazavik, Denis"]
[WhiteFideId "14112906"]
[BlackFideId "13515110"]
[WhiteElo "2496"]
[BlackElo "2560"]
[Result "1/2-1/2"]
[Round "04"]
[TimeControl "180+2"]
[Date "2023.04.11"]
[WhiteClock "0:00:03"]
[BlackClock "0:00:03"]

1. d4 {[%clk 0:02:57]}  Nf6 {[%clk 0:02:59]} 2. c4 {[%clk 0:02:58]}  e6 {[%clk 0:03:00]} 3. Nc3 {[%clk 0:02:58]}  Bb4 {[%clk 0:03:00]} 4. Qc2 {[%clk 0:02:58]}  O-O {[%clk 0:02:59]} 5. a3 {[%clk 0:02:57]}  Bxc3+ {[%clk 0:03:00]} 6. Qxc3 {[%clk 0:02:58]}  d5 {[%clk 0:02:59]} 7. Nf3 {[%clk 0:02:57]}  Nbd7 {[%clk 0:02:52]} 8. Bg5 {[%clk 0:02:49]}  h6 {[%clk 0:02:46]} 9. Bh4 {[%clk 0:02:48]}  b6 {[%clk 0:02:43]} 10. cxd5 {[%clk 0:02:45]}  exd5 {[%clk 0:02:42]} 11. e3 {[%clk 0:02:43]}  Bb7 {[%clk 0:02:34]} 12. Bb5 {[%clk 0:02:42]}  c6 {[%clk 0:02:32]} 13. Bd3 {[%clk 0:02:41]}  c5 {[%clk 0:02:30]} 14. O-O {[%clk 0:02:32]}  Re8 {[%clk 0:02:26]} 15. Rfd1 {[%clk 0:02:24]}  Qe7 {[%clk 0:02:23]} 16. b4 {[%clk 0:02:01]}  c4 {[%clk 0:02:20]} 17. Bc2 {[%clk 0:02:00]}  Ne4 {[%clk 0:02:16]} 18. Bxe4 {[%clk 0:01:58]}  Qxe4 {[%clk 0:02:15]} 19. b5 {[%clk 0:01:56]}  f6 {[%clk 0:02:12]} 20. Bg3 {[%clk 0:01:54]}  Nf8 {[%clk 0:02:12]} 21. a4 {[%clk 0:01:52]}  Bc8 {[%clk 0:02:11]} 22. Nd2 {[%clk 0:01:47]}  Qe7 {[%clk 0:02:09]} 23. Re1 {[%clk 0:01:43]}  Bf5 {[%clk 0:02:01]} 24. e4 {[%clk 0:01:37]}  dxe4 {[%clk 0:02:00]} 25. Qxc4+ {[%clk 0:01:29]}  Kh8 {[%clk 0:01:55]} 26. d5 {[%clk 0:01:29]}  Rac8 {[%clk 0:01:53]} 27. Qd4 {[%clk 0:01:24]}  Qc5 {[%clk 0:01:40]} 28. Nb3 {[%clk 0:01:04]}  Qc4 {[%clk 0:01:33]} 29. Re3 {[%clk 0:00:49]}  Nd7 {[%clk 0:01:23]} 30. h3 {[%clk 0:00:37]}  Bg6 {[%clk 0:01:21]} 31. d6 {[%clk 0:00:28]}  Bf7 {[%clk 0:01:12]} 32. Qxc4 {[%clk 0:00:27]}  Rxc4 {[%clk 0:01:12]} 33. Nd2 {[%clk 0:00:18]}  Rd4 {[%clk 0:01:10]} 34. Nf1 {[%clk 0:00:16]}  Nc5 {[%clk 0:01:09]} 35. a5 {[%clk 0:00:13]}  Nb3 {[%clk 0:01:04]} 36. Rb1 {[%clk 0:00:11]}  Nxa5 {[%clk 0:01:03]} 37. Ra3 {[%clk 0:00:09]}  Nc4 {[%clk 0:00:33]} 38. Rxa7 {[%clk 0:00:08]}  Be6 {[%clk 0:00:29]} 39. Rb7 {[%clk 0:00:07]}  Nxd6 {[%clk 0:00:19]} 40. Rxb6 {[%clk 0:00:07]}  Nc4 {[%clk 0:00:20]} 41. Rb7 {[%clk 0:00:07]}  Bf5 {[%clk 0:00:20]} 42. Rc1 {[%clk 0:00:07]}  e3 {[%clk 0:00:17]} 43. fxe3 {[%clk 0:00:07]}  Nxe3 {[%clk 0:00:16]} 44. Nxe3 {[%clk 0:00:08]}  Be4 {[%clk 0:00:06]} 45. Rbc7 {[%clk 0:00:07]}  Rd3 {[%clk 0:00:05]} 46. Rc8 {[%clk 0:00:07]}  Rxc8 {[%clk 0:00:04]} 47. Rxc8+ {[%clk 0:00:08]}  Kh7 {[%clk 0:00:05]} 48. Bf2 {[%clk 0:00:08]}  Rb3 {[%clk 0:00:06]} 49. Rb8 {[%clk 0:00:08]}  Rb1+ {[%clk 0:00:07]} 50. Kh2 {[%clk 0:00:08]}  Rb2 {[%clk 0:00:07]} 51. Bg3 {[%clk 0:00:07]}  Re2 {[%clk 0:00:07]} 52. Bf4 {[%clk 0:00:03]}  g5 {[%clk 0:00:06]} 53. Re8 {[%clk 0:00:04]}  gxf4 {[%clk 0:00:05]} 54. Rxe4 {[%clk 0:00:04]}  fxe3 {[%clk 0:00:06]} 55. Kg3 {[%clk 0:00:04]}  Kg6 {[%clk 0:00:04]} 56. Rb4 {[%clk 0:00:04]}  Rf2 {[%clk 0:00:02]} 57. b6 {[%clk 0:00:04]}  Rf1 {[%clk 0:00:03]} 58. Re4 {[%clk 0:00:03]}  Rb1 {[%clk 0:00:02]} 59. Rxe3 {[%clk 0:00:04]}  Rxb6 {[%clk 0:00:03]} 60. Kh2 {[%clk 0:00:03]} 1/2-1/2


[Site "https://www.chess.com"]

[Event "Titled Tuesday Blitz April 11 Early 2023"]
[White "Hakobyan, Aram"]
[Black "Kamsky, Gata"]
[WhiteFideId "13306677"]
[BlackFideId "2000024"]
[WhiteElo "2584"]
[BlackElo "2660"]
[Result "1-0"]
[Round "04"]
[TimeControl "180+2"]
[Date "2023.04.11"]
[WhiteClock "0:00:05"]
[BlackClock "0:00:01"]

1. d4 {[%clk 0:03:00]}  Nf6 {[%clk 0:02:57]} 2. Nf3 {[%clk 0:02:58]}  e6 {[%clk 0:02:56]} 3. c4 {[%clk 0:02:58]}  Bb4+ {[%clk 0:02:50]} 4. Nbd2 {[%clk 0:02:58]}  O-O {[%clk 0:02:40]} 5. a3 {[%clk 0:02:58]}  Be7 {[%clk 0:02:35]} 6. e4 {[%clk 0:02:58]}  d6 {[%clk 0:02:35]} 7. Be2 {[%clk 0:02:56]}  a5 {[%clk 0:02:30]} 8. Qc2 {[%clk 0:02:52]}  Nbd7 {[%clk 0:02:23]} 9. O-O {[%clk 0:02:51]}  e5 {[%clk 0:02:23]} 10. Nb1 {[%clk 0:02:51]}  Re8 {[%clk 0:02:17]} 11. Nc3 {[%clk 0:02:51]}  Bf8 {[%clk 0:02:17]} 12. Rd1 {[%clk 0:02:51]}  c6 {[%clk 0:02:14]} 13. d5 {[%clk 0:02:33]}  Qc7 {[%clk 0:01:50]} 14. h3 {[%clk 0:02:19]}  Nc5 {[%clk 0:01:43]} 15. Be3 {[%clk 0:02:09]}  a4 {[%clk 0:01:42]} 16. Nd2 {[%clk 0:01:37]}  Qa5 {[%clk 0:01:33]} 17. Rac1 {[%clk 0:01:35]}  g6 {[%clk 0:01:30]} 18. Bf3 {[%clk 0:00:56]}  Bd7 {[%clk 0:01:24]} 19. Bxc5 {[%clk 0:00:50]}  dxc5 {[%clk 0:01:23]} 20. Nf1 {[%clk 0:00:51]}  Bh6 {[%clk 0:01:20]} 21. Rb1 {[%clk 0:00:51]}  cxd5 {[%clk 0:01:16]} 22. Nxd5 {[%clk 0:00:38]}  Nxd5 {[%clk 0:01:15]} 23. cxd5 {[%clk 0:00:39]}  Rac8 {[%clk 0:01:02]} 24. Bg4 {[%clk 0:00:37]}  Bxg4 {[%clk 0:01:01]} 25. hxg4 {[%clk 0:00:38]}  c4 {[%clk 0:01:00]} 26. Nh2 {[%clk 0:00:31]}  b5 {[%clk 0:00:58]} 27. Nf3 {[%clk 0:00:31]}  f6 {[%clk 0:00:55]} 28. d6 {[%clk 0:00:30]}  Red8 {[%clk 0:00:47]} 29. Rd5 {[%clk 0:00:30]}  Qb6 {[%clk 0:00:45]} 30. Rbd1 {[%clk 0:00:29]}  Rd7 {[%clk 0:00:43]} 31. g5 {[%clk 0:00:27]}  Bxg5 {[%clk 0:00:43]} 32. Nxg5 {[%clk 0:00:28]}  fxg5 {[%clk 0:00:43]} 33. Qd2 {[%clk 0:00:28]}  Rcd8 {[%clk 0:00:23]} 34. Qb4 {[%clk 0:00:22]}  Rf8 {[%clk 0:00:22]} 35. R1d2 {[%clk 0:00:22]}  Rb8 {[%clk 0:00:16]} 36. Rxe5 {[%clk 0:00:21]}  g4 {[%clk 0:00:16]} 37. Qc5 {[%clk 0:00:20]}  Qxc5 {[%clk 0:00:15]} 38. Rxc5 {[%clk 0:00:20]}  Kf7 {[%clk 0:00:15]} 39. e5 {[%clk 0:00:16]}  Ke6 {[%clk 0:00:16]} 40. Rd4 {[%clk 0:00:16]}  g5 {[%clk 0:00:12]} 41. Rxg4 {[%clk 0:00:16]}  h6 {[%clk 0:00:13]} 42. Rd4 {[%clk 0:00:14]}  Rf7 {[%clk 0:00:09]} 43. g3 {[%clk 0:00:11]}  Rf3 {[%clk 0:00:05]} 44. d7 {[%clk 0:00:06]}  Rff8 {[%clk 0:00:02]} 45. Rd6+ {[%clk 0:00:05]}  Ke7 {[%clk 0:00:02]} 46. Rcd5 {[%clk 0:00:05]}  Rh8 {[%clk 0:00:01]} 47. Rg6 {[%clk 0:00:05]} 1-0


[Site "https://www.chess.com"]

[Event "Titled Tuesday Blitz April 11 Early 2023"]
[White "Bluebaum, Matthias"]
[Black "Asis Gargatagli, Hipolito"]
[WhiteFideId "24651516"]
[BlackFideId "2260735"]
[WhiteElo "2638"]
[BlackElo "2557"]
[Result "1-0"]
[Round "04"]
[TimeControl "180+2"]
[Date "2023.04.11"]
[WhiteClock "0:01:47"]
[BlackClock "0:02:15"]

1. d4 {[%clk 0:03:00]}  Nf6 {[%clk 0:02:59]} 2. c4 {[%clk 0:03:01]}  e6 {[%clk 0:03:00]} 3. Nc3 {[%clk 0:03:01]}  Bb4 {[%clk 0:03:00]} 4. e3 {[%clk 0:03:02]}  O-O {[%clk 0:02:59]} 5. Bd2 {[%clk 0:03:02]}  d5 {[%clk 0:02:58]} 6. Nf3 {[%clk 0:03:03]}  Re8 {[%clk 0:02:56]} 7. Rc1 {[%clk 0:03:03]}  Bf8 {[%clk 0:02:56]} 8. Qc2 {[%clk 0:02:58]}  Nbd7 {[%clk 0:02:51]} 9. cxd5 {[%clk 0:02:57]}  exd5 {[%clk 0:02:51]} 10. Bd3 {[%clk 0:02:58]}  a6 {[%clk 0:02:43]} 11. Ng5 {[%clk 0:02:52]}  g6 {[%clk 0:02:40]} 12. h4 {[%clk 0:02:52]}  c5 {[%clk 0:02:37]} 13. h5 {[%clk 0:02:29]}  cxd4 {[%clk 0:02:26]} 14. hxg6 {[%clk 0:02:28]}  fxg6 {[%clk 0:02:27]} 15. Bxg6 {[%clk 0:02:20]}  Re7 {[%clk 0:02:27]} 16. Nxd5 {[%clk 0:02:01]}  Rg7 {[%clk 0:02:15]} 17. Ne6 {[%clk 0:01:47]} 1-0


[Site "https://www.chess.com"]